Cogmind - Beta 12 @@@ ROGUE MODE // 2023.03.03 @ 11:44:41 Player: Dendrocnid Result: Self-destructed Performance ------------- Evolutions (2) 1000 Regions Visited (4) 800 Robots Destroyed (61) 305 Value Destroyed (1679) 1679 Prototype IDs (0) 0 Alien Tech Used (0) 0 Bonus (4) 4 TOTAL SCORE: 3788 Bonus ------- High Alert Combat Kills 4 Cogmind --------- Core Integrity 243/550 Matter 19/300 Energy 56/100 System Corruption 0% Temperature Cool (27) Movement Core (700) Ox13 Location -8/Materials Parts ------- > --- POWER (1) -------- (None) > --- PROPULSION (2) --- (None) > --- UTILITY (6) ------ Improved Cooling System High-capacity Storage Unit > --- WEAPON (2) ------- (None) > --- INVENTORY (20) --- Light Ion Engine VSS Leg Large Storage Unit Visual Processing Unit Peak State ------------ > --- POWER ------------ Improved Deuterium Engine > --- PROPULSION ------- Carbon-fiber Leg VSS Leg > --- UTILITY ---------- Improved Cooling System High-capacity Storage Unit Recoil Stabilizer Core Shielding Improved Light Armor Plating Layered Light Armor Plating > --- WEAPON ----------- High-powered Shotgun Assault Cannon > --- INVENTORY -------- Ion Engine Light Ion Engine Compact Wheel Large Storage Unit Improved Light Armor Plating Rocket Launcher Rocket Launcher [Rating: 33] Favorites ----------- Power Ion Engine Engine Ion Engine Propulsion Compact Wheel Treads Light Treads Leg Carbon-fiber Leg Wheel Compact Wheel Utility High-capacity Storage Unit Device Recoil Stabilizer Storage High-capacity Storage Unit Protection Core Shielding Weapon Light Assault Rifle Energy Gun Particle Gun Ballistic Gun Light Assault Rifle Ballistic Cannon Assault Cannon Launcher Rocket Launcher Build | -11 -10 -9 -9 -8 ------- Run | Jun Mat Mat Min Mat Slots Evolved 4 | . . 2 . 2 Power . | . . . . . Propulsion . | . . . . . Utility 4 | . . 2 . 2 Weapon . | . . . . . Parts Attached 45 | 6 4 6 5 24 Power 5 | 1 1 . 1 2 Engine 5 | 1 1 . 1 2 Core . | . . . . . Reactor . | . . . . . Propulsion 11 | 2 . 2 1 6 Treads 2 | . . 1 1 . Leg 3 | . . . . 3 Wheel 6 | 2 . 1 . 3 Hover . | . . . . . Flight . | . . . . . Utility 11 | 1 2 1 1 6 Device 4 | . . 1 . 3 Storage 3 | 1 2 . . . Processor . | . . . . . Hackware . | . . . . . Protection 4 | . . . 1 3 Artifact . | . . . . . Weapon 18 | 2 1 3 2 10 Energy Gun 1 | . . 1 . . Energy Cannon . | . . . . . Ballistic Gun 9 | 2 1 1 2 3 Ballistic Cannon 2 | . . . . 2 Launcher 6 | . . 1 . 5 Special Weapon . | . . . . . Impact Weapon . | . . . . . Slashing Weapon . | . . . . . Piercing Weapon . | . . . . . Special Melee Weapon . | . . . . . Unidentified Prototypes . | . . . . . Parts Lost 30 | . 2 3 5 20 Power 4 | . 1 . 1 2 Propulsion 9 | . . 2 1 6 Utility 6 | . . . 1 5 Weapon 11 | . 1 1 2 7 Highest Loss Streak 7 | . 1 2 3 7 To Critical Strikes . | . . . . . Average Slot Usage (%) 76 | . 86 73 67 77 Engine 10 | . 12 11 11 7 Treads 3 | . . 4 11 1 Leg 4 | . . . . 12 Wheel 13 | . 28 17 11 2 Device 3 | . . 8 1 6 Storage 11 | . 17 11 11 9 Protection 7 | . . . . 20 Energy Gun 1 | . . 4 3 . Ballistic Gun 18 | . 28 18 17 11 Ballistic Cannon 1 | . . . . 4 Naked Turns . | . . . . . Heaviest Build 69 | 13 48 50 51 69 Greatest Support 32 | 32 32 32 16 30 Greatest Overweight (x) 6 | . 1 3 3 6 Average Overweight (x) 1 | . . 1 2 2 Largest Inventory Capacity 20 | 8 20 20 20 20 Average Capacity 18 | 6 17 20 20 20 Most Carried 10 | 6 10 9 8 9 Average Carried 6 | 2 8 7 4 7 Final Capacity 20 | 8 20 20 20 20 Final Carried 8 | 6 8 7 5 4 Class Distribution -------------------- 100% | Mutant Dominant Class ---------------- Mutant | -10/Materials Mutant | -9/Materials Mutant | -9/Mines Mutant | -8/Materials Resources | -11 -10 -9 -9 -8 ----------- Run | Jun Mat Mat Min Mat Matter Collected 1091 | 169 308 117 48 449 Remotely . | . . . . . Salvage Created 1887 | . 622 290 139 836 Parts 102 | . 32 14 6 50 Haulers Intercepted 3 | . 2 . . 1 Recyclers Shooed 1 | . . . . 1 Parts Field Recycled . | . . . . . Retrieved Matter . | . . . . . Parts Self-Destructed . | . . . . . Prevented . | . . . . . Kills | -11 -10 -9 -9 -8 ------- Run | Jun Mat Mat Min Mat Combat Hostiles Destroyed 50 | . 14 6 5 25 Guns 33 | . 14 6 5 8 Cannons 5 | . . . . 5 AOE 12 | . . . . 12 Classes Destroyed 10 | . 4 1 . 5 Worker 2 | . . . . 2 Builder 3 | . 1 . . 2 Hauler 3 | . 2 . . 1 Recycler 2 | . . . . 2 Watcher 1 | . . . . 1 Swarmer 17 | . 3 . 3 11 Grunt 28 | . 11 5 2 10 Sentry 2 | . . 1 . 1 Specialist 2 | . . . . 2 Heavy 1 | . . . . 1 Best Kill Streak 11 | . 5 2 2 11 Combat Bots Only 6 | . 4 2 2 6 Max Kills in Single Turn 4 | . 1 1 1 4 Gunslinging . | . . . . . Exploded 3 | . . . . 3 Melee . | . . . . . Uniques/NPCs Destroyed . | . . . . . Combat | -11 -10 -9 -9 -8 -------- Run | Jun Mat Mat Min Mat Damage Taken 3585 | . 473 319 566 2227 Core 662 | . 181 87 87 307 Absorbed by Shields . | . . . . . Redirected to Shielding 52 | . . . . 52 Core Remaining (%) 61 | 100 27 . 56 . Volleys Fired 159 | . 47 22 27 63 Largest 2 | . 2 2 2 2 Hottest 85 | . 40 85 85 69 Shots Fired 295 | . 93 43 45 114 Gun 251 | . 93 42 45 71 Cannon 21 | . . . . 21 Launcher 23 | . . 1 . 22 Special . | . . . . . Kinetic 247 | . 93 35 27 92 Thermal 25 | . . 7 18 . Explosive 23 | . . 1 . 22 Electromagnetic . | . . . . . Robot Hit Streak 14 | . 7 14 6 12 Robot Miss Streak 5 | . 4 1 5 4 Penetration Max 1 | . . . . 1 Secondary Targets 3 | . 2 1 . . Max Gunslinging Chain 1 | . 1 1 . . Shots Hit Robots 185 | . 53 30 27 75 Core Hits 113 | . 30 15 12 56 Critical Kills . | . . . . . Critical Parts Destroyed . | . . . . . Critical Strikes 4 | . . 1 1 2 Burn 2 | . . 1 1 . Blast 2 | . . . . 2 Melee Attacks . | . . . . . Impact . | . . . . . Slashing . | . . . . . Piercing . | . . . . . Sneak Attacks . | . . . . . Combat Hostiles . | . . . . . Follow-up Attacks . | . . . . . Damage Inflicted 4116 | . 602 349 365 2800 Guns 2189 | . 602 335 365 887 Cannons 359 | . . . . 359 Explosions 1568 | . . 14 . 1554 Melee . | . . . . . Ramming . | . . . . . Kinetic 2288 | . 602 285 155 1246 Thermal 260 | . . 50 210 . Explosive 1568 | . . 14 . 1554 Electromagnetic . | . . . . . Impact . | . . . . . Slashing . | . . . . . Piercing . | . . . . . Highest Corruption . | . . . . . Average Corruption . | . . . . . Corruption Purged . | . . . . . Corruption Blocked . | . . . . . Overload Shots . | . . . . . Overflow Damage 92 | . . . . 92 Projectiles . | . . . . . Explosions 92 | . . . . 92 Melee . | . . . . . Knockbacks 1 | . . . . 1 Impact . | . . . . . Kinetic 1 | . . . . 1 Secondary . | . . . . . Self-Inflicted Damage 149 | . . . . 149 Shots 4 | . . . . 4 Rammed . | . . . . . Targets Rammed . | . . . . . Kicked . | . . . . . Crushed . | . . . . . Highest Temperature 264 | . 12 37 264 225 Average Temperature 63 | . 7 12 114 54 Received Heat Transfer 1050 | . 138 216 120 576 Siege Activations . | . . . . . Robots Corrupted . | . . . . . Combat Hostiles . | . . . . . Parts Fried . | . . . . . Impact Corruptions . | . . . . . Robots Melted . | . . . . . Combat Hostiles . | . . . . . Parts Melted 2 | . . 1 1 . Heat Transferred 777 | . . 185 592 . Parts Sabotaged . | . . . . . Parts Stolen . | . . . . . Parts Stripped . | . . . . . Power Chain Reactions . | . . . . . Missiles Intercepted . | . . . . . Alert | -11 -10 -9 -9 -8 ------- Run | Jun Mat Mat Min Mat Peak Influence 447 | . 227 234 161 447 Initial 91 | . . 63 91 5 Average 118 | . 99 152 106 137 Maximum Alert Level 2 | . 1 1 . 2 Low Security (%) 85 | 100 84 68 100 82 Level 1 12 | . 15 31 . 11 Level 2 2 | . . . . 6 Level 3 . | . . . . . Level 4 . | . . . . . Level 5 . | . . . . . High Security . | . . . . . Max Security . | . . . . . Squads Dispatched 8 | . 2 1 . 5 Investigation 2 | . 1 1 . . Extermination . | . . . . . Reinforcement 6 | . 1 . . 5 Assault . | . . . . . Garrison . | . . . . . Intercept . | . . . . . Searches Triggered . | . . . . . Construction Impeded 1 | . . . . 1 Haulers Reinforced . | . . . . . Active Scanning Responses . | . . . . . Cargo Convoy Interrupts . | . . . . . Stealth | -11 -10 -9 -9 -8 --------- Run | Jun Mat Mat Min Mat Distress Signals 4 | . 1 1 . 2 Communications Jammed . | . . . . . Distress Signals . | . . . . . Times Spotted 73 | . 18 11 12 32 Peak Tracking Total 10 | . 4 6 10 6 Tactical Retreats 2 | . . 1 . 1 Traps | -11 -10 -9 -9 -8 ------- Run | Jun Mat Mat Min Mat Traps Triggered 2 | . 1 1 . . Indirectly . | . . . . . Trap Hack Attempts . | . . . . . Triggered . | . . . . . Disarmed . | . . . . . Reprogrammed . | . . . . . Reused . | . . . . . Traps Extracted . | . . . . . Installed . | . . . . . Triggered . | . . . . . Machines | -11 -10 -9 -9 -8 ---------- Run | Jun Mat Mat Min Mat Machines Disabled 4 | . 1 1 1 1 Max in Single Turn 1 | . 1 1 . 1 Machines Repaired . | . . . . . Machines Sabotaged . | . . . . . Overloaded Fab Kills . | . . . . . Hacking | -11 -10 -9 -9 -8 --------- Run | Jun Mat Mat Min Mat Machines Accessed 2 | . . . 1 1 Terminals 1 | . . . . 1 Fabricators . | . . . . . Repair Stations . | . . . . . Recycling Units . | . . . . . Scanalyzers . | . . . . . Garrison Access . | . . . . . Total Hacks 4 | . . . 1 3 Successful 2 | . . . 1 1 Failed 2 | . . . . 2 Catastrophic . | . . . . . Database Lockouts . | . . . . . Manual 4 | . . . . 4 Terminals 3 | . . . . 3 Fabricators . | . . . . . Repair Stations . | . . . . . Recycling Units . | . . . . . Scanalyzers . | . . . . . Garrison Access . | . . . . . Terminal Hacks 1 | . . . 1 . Open Door 1 | . . . 1 . Fabricator Hacks . | . . . . . Repair Station Hacks . | . . . . . Recycling Unit Hacks . | . . . . . Scanalyzer . | . . . . . Garrison Access Hacks . | . . . . . Unauthorized Hacks 1 | . . . . 1 Terminals 1 | . . . . 1 Botnet 1 | . . . . 1 Fabricators . | . . . . . Repair Stations . | . . . . . Recycling Units . | . . . . . Scanalyzers . | . . . . . Garrison Access . | . . . . . Data Cores Recovered . | . . . . . Used . | . . . . . Hacking Detections 1 | . . . . 1 Full Trace Events . | . . . . . Feedback Events . | . . . . . Feedback Blocked . | . . . . . Robot Schematics Acquired . | . . . . . Robots Built . | . . . . . Authchips . | . . . . . Time . | . . . . . Total Robot Build Rating . | . . . . . Part Schematics Acquired . | . . . . . Parts Built . | . . . . . Authchips . | . . . . . Time . | . . . . . Total Part Build Rating . | . . . . . Parts Repaired . | . . . . . Time . | . . . . . Parts Recycled . | . . . . . Recycled Matter . | . . . . . Retrieved Matter . | . . . . . Retrieved Components . | . . . . . Parts Scanalyzed . | . . . . . Part Schematics Acquired . | . . . . . Parts Damaged . | . . . . . Bothacking | -11 -10 -9 -9 -8 ------------ Run | Jun Mat Mat Min Mat Used RIF Installer . | . . . . . Robots Hacked . | . . . . . Non-combat . | . . . . . Combat . | . . . . . Robot Hacks Applied . | . . . . . Relay Couplers Released . | . . . . . Fabnet Peak Effective % . | . . . . . Robots Rewired . | . . . . . Allies Hacked . | . . . . . Hacks Repelled . | . . . . . Allies | -11 -10 -9 -9 -8 -------- Run | Jun Mat Mat Min Mat Total Allies 1 | . . . 1 . Largest Group 1 | . . . 1 1 Highest-Rated Group 31 | . . . 31 31 Highest-Rated Ally 31 | . . . 31 31 Total Orders . | . . . . . Ally Attacks 14 | . . . 7 7 Total Damage 148 | . . . 42 106 Kills 1 | . . . 1 . Allies Corrupted . | . . . . . Allies Melted . | . . . . . Intel | -11 -10 -9 -9 -8 ------- Run | Jun Mat Mat Min Mat Robot Analysis Total . | . . . . . Derelict Logs Recovered 1 | . . . 1 . Drone Launches . | . . . . . Drone Recoveries . | . . . . . Exploration | -11 -10 -9 -9 -8 ------------- Run | Jun Mat Mat Min Mat Turns Passed 2183 | 69 554 331 500 729 Spaces Moved 1121 | 55 349 182 301 234 Core 2 | 2 . . . . Treads . | . . . . . Legs 128 | . . . . 128 Wheels 991 | 53 349 182 301 106 Hover . | . . . . . Flight . | . . . . . Fastest Speed 50 | 50 100 115 130 105 Average Speed 138 | 98 111 126 133 203 Slowest Speed 540 | 100 115 145 145 540 Overloaded Moves . | . . . . . Propulsion Burnouts . | . . . . . Robots Hopped . | . . . . . Cave-ins Triggered . | . . . . . Exploration Rate (%) 35 | 4 53 24 72 22 Regions Visited 4 Branch Regions 1 Pre-discovered Areas . | . . . . . Known Exits Taken . | . . . . . Unknown Exits Taken 4 | 1 1 1 1 . Scrap Searched 1 | . . . 1 . Spaces Dug . | . . . . . Terrain Destroyed 125 | . . 5 . 120 Melee . | . . . . . Projectile 1 | . . . . 1 AOE 124 | . . 5 . 119 Terrain Rammed . | . . . . . Walls Destroyed . | . . . . . Machines Disabled . | . . . . . Actions | -11 -10 -9 -9 -8 --------- Run | Jun Mat Mat Min Mat Total 1468 | 66 431 243 358 370 Wait 115 | . 20 32 23 40 Move 1117 | 54 348 181 300 234 Hop . | . . . . . Pick Up 25 | 6 6 2 2 9 Fast Attach 17 | 6 2 1 2 6 Attach 17 | . 1 3 3 10 Detach 1 | . 1 . . . Swap 11 | . 1 2 . 8 Drop 6 | . 5 . 1 . Fire 159 | . 47 22 27 63 Melee . | . . . . . Ram . | . . . . . Kick . | . . . . . Crush . | . . . . . Escape Stasis . | . . . . . Rewire . | . . . . . Trap . | . . . . . Miscellaneous . | . . . . . Route ------- -11/Junkyard -10/Materials (discovered 2 exits: [*Mat x2]) -9/Materials -9/Mines (discovered 2 exits: *Mat x2) -8/Materials History --------- Turn | Location | Event 23 | -11/Junkyard | Discovered new exit (range 16) 70 | -11/Junkyard | Entered Materials 254 | -10/Materials | Discovered new exit (range 16) 318 | -10/Materials | Build established: Mutant 440 | -10/Materials | Discovered new exit (range 4) 475 | -10/Materials | Core integrity fell below 50% 624 | -10/Materials | Entered another Materials area 624 | -9/Materials | Evolved 2 slots: Utility x2 904 | -9/Materials | Discovered new exit (range 7) 955 | -9/Materials | Entered Mines 967 | -9/Mines | Discovered new exit (range 3) 987 | -9/Mines | Learned Materials stockpile data 997 | -9/Mines | Received a Rocket Launcher from a helpful Derelict 1072 | -9/Mines | Lost 3 parts (1p1u1w) 1341 | -9/Mines | Received a Mining Laser from a helpful Derelict 1428 | -9/Mines | Discovered new exit (range 7) 1433 | -9/Mines | Assembled infested the area 1438 | -9/Mines | Met a Derelict who couldn't figure out how to use a Trap Extractor 1455 | -9/Mines | Entered Materials 1455 | -8/Materials | Accompanied by 1 ally 1455 | -8/Materials | Evolved 2 slots: Utility x2 2069 | -8/Materials | Lost 7 parts (1p1n3u2w) 2180 | -8/Materials | Core integrity fell below 50% 2184 | -8/Materials | Self-destructed Last Messages --------------- 02158_ Acquired 41 matter. 02159_ U-05 Engineer lays Concrete. 02162_ U-05 Engineer builds a Wall. 02166_ U-05 Engineer lays Concrete. 02169_ Slug penetrates G-47 Trooper. 02170_ Com. Wheel destroyed. 02172_ G-47 Trooper destroyed. 02173_ Gauss Rifle destroyed. 02175_ Core Shielding destroyed. 02176_ Acquired 17 matter. 02177_ U-05 Engineer lays Concrete. 02179_ U-05 Engineer builds a Wall. 02179_ Destroyed Welding Torch. 02179_ U-05 Engineer destroyed. 02179_ Wheel destroyed. 02179_ Destroyed Wheel. 02183_ Rocket Launcher destroyed. 02184_ The unstable cave ceiling collapses. 02184_ Rocket Launcher destroyed. 02184_ Critical hit (Burn: +37). Map ----- +----------------------------------------------------+ | #???????????????????????????????????????????? | | #???????????????????????????????????????????? | | #???????????????????????????????????????????? | | = #???????????????????????????????????????????? | | +#################???????????????????????????????? | | %[ +*= #???????????????????????????????? | | ##### = #???????????????????????????????? | | #???# #???????????????????????????????? | | ##### #???????????????????????????????? | | + #?????????? ????????????????????? | | ##### #????????? #??????????????????? | | #???# #????????? +??????????????????? | | #???# #????????? #??????????????????? | | #???#####+#####?????#??? #??????????????????? | | ####### #?????? #? #??""?"????????????? | | #????"""" #? #?""" "????????????? | | * T # """"""" #? # ???????????? | | # """"" ## # ????????????? | | ########## # """" ## !!!??????????????? | | ??????### ## """" # !!???????????????? | | ##### #! ## # !????????????????? | | # != # ########??????????? | | # =!!##### ## ! ???????????? | | # # [ """????????????? | | #!=[ + t *==*g! = """????????????? | | #!=[ # Y @g #?????????????????? | | #![ # # #?????????????????? | | ##### ## #######?????????????????? | | ????# % u %! # ???????????????????????? | | ??#" # % % ### #?????????????????????? | | ??## % % ???????????????????? | | ???# [% !! = # ###???????????????????? | | ???# = [ ! ## ##?????????????????????? | | ???# # ###### ##??????????????????????? | | ???# # ?? ##???????????????????????? | | ???# # ? ??""" #????????????????????????? | | ?? / + "" ? ??"""" #????????????????????????? | | ? # # S"" ? ?????" #????????????????????????? | | [[?# # "" ????????? #????????????????????????? | | ???#? ?#??? ???????????????????????????????????? | | ???? ?????###???????????????????????????????????? | | ?????????????????????????????????????????????????? | | ?????????????????????????????????????????????????? | | ?????????????????????????????????????????????????? | | ?????????????????????????????????????????????????? | | ?????????????????????????????????????????????????? | | ?????????????????????????????????????????????????? | | ?????????????????????????????????????????????????? | | ?????????????????????????????????????????????????? | | ?????????????????????????????????????????????????? | +----------------------------------------------------+ Best States ------------- Heat Dissipation 58 Energy Generation 16 Energy Capacity 290 Matter Stores 300 Matter Capacity 300 Sight Range 16 Terrain Scan Density 10 Armor Coverage 300 Core Shielding 20 Evasion (%) 40 Recoil Reduction 4 Item Schematics ----------------- None Robot Schematics ------------------ None Fabricated ------------ Nothing Alien Tech Used ----------------- None Achievements -------------- None Challenges ------------ None Game ------ Seed BattleBarrageCompactor Manual? 0 Play Time 00:23:41 Cumulative 120.5 hours Start 2023.03.03 @ 11:20:48 End 2023.03.03 @ 11:44:41 Sessions 1 Manual Loads 0 Difficulty Rogue Special Mode None Game No. 195 Rogue 195 Adventurer 0 Explorer 0 Win Type - Total 0 Types 0/0/0/0/0/0/0/0/0 Lore% 28 Gallery% 50 Achievement% 42 Wizard Run 0 Options --------- ASCII 0 Keyboard 0 Movement Mouse Keybinds 0 Fullscreen 1 Font 18/SmallcapsGlow Map View 76x50 Tactical HUD 1 Map Filters NONE Filters NONE Steam 1 RUN: 2bcffb90-6022-48fb-8efe-33e7e99013c7